[Event "Early-Titled-Tuesday-Blitz-February-06-2024"]
[Site "Chess.com"]
[Date "2024.02.06"]
[Round "1"]
[White "Markov_Mikhail"]
[Black "FrenchMonster2002"]
[Result "1-0"]
[WhiteElo "2730"]
[BlackElo "2399"]
[TimeControl "180+1"]
[EndTime "8:05:41 PST"]
[Termination "Markov_Mikhail won on time"]

1. c4 {[%clk 0:03:00.9]} 1... Nf6 {[%clk 0:02:58.7]} 2. Nf3 {[%clk 0:02:59.5]}
2... g6 {[%clk 0:02:59.1]} 3. g3 {[%clk 0:02:59.6]} 3... Bg7 {[%clk 0:02:59.6]}
4. Bg2 {[%clk 0:03:00]} 4... O-O {[%clk 0:03:00.2]} 5. O-O {[%clk 0:03:00.9]}
5... d6 {[%clk 0:03:00.8]} 6. Nc3 {[%clk 0:03:01.6]} 6... Nc6 {[%clk 0:03:01.4]}
7. d4 {[%clk 0:03:02.5]} 7... e5 {[%clk 0:03:01.7]} 8. dxe5 {[%clk 0:03:03.4]}
8... Nxe5 {[%clk 0:03:02.6]} 9. Nxe5 {[%clk 0:03:03.8]} 9... dxe5 {[%clk
0:03:03.5]} 10. Qxd8 {[%clk 0:03:04.4]} 10... Rxd8 {[%clk 0:03:04.4]} 11. Bg5
{[%clk 0:03:05.1]} 11... Rd4 {[%clk 0:03:05.1]} 12. Nd5 {[%clk 0:03:05.4]} 12...
Nxd5 {[%clk 0:02:51.2]} 13. cxd5 {[%clk 0:03:06.3]} 13... Bg4 {[%clk 0:02:45.7]}
14. Rac1 {[%clk 0:02:51.9]} 14... Bxe2 {[%clk 0:02:30.2]} 15. Rfe1 {[%clk
0:02:44.1]} 15... Bd3 {[%clk 0:01:48.1]} 16. Rxc7 {[%clk 0:02:40.6]} 16... e4
{[%clk 0:01:47.6]} 17. Rd7 {[%clk 0:02:27.7]} 17... Ra4 {[%clk 0:01:27.3]} 18.
Rxb7 {[%clk 0:02:23]} 18... h6 {[%clk 0:01:07]} 19. Be7 {[%clk 0:02:20]} 19...
Bf8 {[%clk 0:00:54.1]} 20. d6 {[%clk 0:02:14.5]} 20... Rxa2 {[%clk 0:00:44.1]}
21. Bxe4 {[%clk 0:02:10.2]} 21... Bxe4 {[%clk 0:00:38.8]} 22. Rxe4 {[%clk
0:02:11.1]} 22... Ra1+ {[%clk 0:00:34.8]} 23. Kg2 {[%clk 0:02:11]} 23... Rd1
{[%clk 0:00:35.7]} 24. Bxf8 {[%clk 0:02:07.6]} 24... Rxf8 {[%clk 0:00:31.2]} 25.
d7 {[%clk 0:02:08.1]} 25... Kg7 {[%clk 0:00:21.3]} 26. Rxa7 {[%clk 0:02:05.9]}
26... Rd8 {[%clk 0:00:19.3]} 27. b4 {[%clk 0:02:03.6]} 27... R1xd7 {[%clk
0:00:18.7]} 28. Rxd7 {[%clk 0:02:04.5]} 28... Rxd7 {[%clk 0:00:19.6]} 29. Re1
{[%clk 0:02:05.2]} 29... Kf6 {[%clk 0:00:14.8]} 30. Rb1 {[%clk 0:02:04]} 30...
Rb7 {[%clk 0:00:10.9]} 31. b5 {[%clk 0:02:04.3]} 31... Rb6 {[%clk 0:00:09.6]}
32. Kf3 {[%clk 0:02:04.9]} 32... Ke5 {[%clk 0:00:09.9]} 33. Ke3 {[%clk
0:02:05.5]} 33... Kd5 {[%clk 0:00:10]} 34. Kf4 {[%clk 0:02:06.1]} 34... Rf6+
{[%clk 0:00:08.3]} 35. Kg4 {[%clk 0:02:06.7]} 35... Rb6 {[%clk 0:00:05]} 36. h4
{[%clk 0:02:07.3]} 36... Kc5 {[%clk 0:00:02.8]} 37. Kf4 {[%clk 0:02:07.5]} 37...
Kd5 {[%clk 0:00:03.3]} 38. f3 {[%clk 0:02:04]} 38... Rc6 {[%clk 0:00:02.5]} 39.
bxc6 {[%clk 0:02:03.8]} 1-0

[Event "Early-Titled-Tuesday-Blitz-February-06-2024"]
[Site "Chess.com"]
[Date "2024.02.06"]
[Round "1"]
[White "CADMartin"]
[Black "youngKID"]
[Result "0-1"]
[WhiteElo "2434"]
[BlackElo "2787"]
[TimeControl "180+1"]
[EndTime "8:05:43 PST"]
[Termination "youngKID won by resignation"]

1. e4 {[%clk 0:03:00.1]} 1... c5 {[%clk 0:02:58.2]} 2. Nf3 {[%clk 0:02:59.8]}
2... e6 {[%clk 0:02:57.7]} 3. d4 {[%clk 0:02:59.3]} 3... cxd4 {[%clk 0:02:58.1]}
4. Nxd4 {[%clk 0:03:00]} 4... a6 {[%clk 0:02:58.7]} 5. c4 {[%clk 0:02:46]} 5...
Nf6 {[%clk 0:02:57.2]} 6. Nc3 {[%clk 0:02:43.8]} 6... Qc7 {[%clk 0:02:57.7]} 7.
a3 {[%clk 0:02:39.7]} 7... b6 {[%clk 0:02:54.5]} 8. Be2 {[%clk 0:02:37.4]} 8...
Bb7 {[%clk 0:02:54.5]} 9. f3 {[%clk 0:02:37.6]} 9... d6 {[%clk 0:02:54.3]} 10.
Be3 {[%clk 0:02:38]} 10... Nbd7 {[%clk 0:02:55]} 11. Rc1 {[%clk 0:02:37.8]}
11... Be7 {[%clk 0:02:55.3]} 12. O-O {[%clk 0:02:37.7]} 12... O-O {[%clk
0:02:55.5]} 13. Qd2 {[%clk 0:02:37.5]} 13... Kh8 {[%clk 0:02:55.7]} 14. Rfd1
{[%clk 0:02:36.4]} 14... Rg8 {[%clk 0:02:53.4]} 15. Kh1 {[%clk 0:02:33]} 15...
h6 {[%clk 0:02:53.8]} 16. Bd3 {[%clk 0:01:47.1]} 16... g5 {[%clk 0:02:52.8]} 17.
f4 {[%clk 0:01:47.1]} 17... Ng4 {[%clk 0:02:42.7]} 18. Bg1 {[%clk 0:01:45.8]}
18... gxf4 {[%clk 0:02:38.3]} 19. Qxf4 {[%clk 0:01:44.9]} 19... Nde5 {[%clk
0:02:38.6]} 20. h3 {[%clk 0:01:39]} 20... Bg5 {[%clk 0:02:36.8]} 21. Qf1 {[%clk
0:01:34.1]} 21... Ne3 {[%clk 0:02:33.2]} 22. Qe2 {[%clk 0:01:08.1]} 22... Nxd1
{[%clk 0:02:30.4]} 23. Rxd1 {[%clk 0:01:09]} 23... Rg6 {[%clk 0:02:21.3]} 24.
Rf1 {[%clk 0:01:05.2]} 24... Rag8 {[%clk 0:02:20.5]} 25. Nf3 {[%clk 0:00:54.8]}
25... Bf6 {[%clk 0:02:19]} 26. g4 {[%clk 0:00:49.8]} 26... Nxd3 {[%clk 0:02:18]}
27. Qxd3 {[%clk 0:00:49.5]} 27... h5 {[%clk 0:02:09.7]} 28. gxh5 {[%clk
0:00:40]} 28... Rg3 {[%clk 0:02:09.5]} 29. Qd2 {[%clk 0:00:37.1]} 29... Rxh3+
{[%clk 0:02:06.2]} 30. Bh2 {[%clk 0:00:37.2]} 30... Rxh5 {[%clk 0:02:06.7]} 31.
Qf4 {[%clk 0:00:27.2]} 31... Rg6 {[%clk 0:02:03.4]} 32. Rg1 {[%clk 0:00:18.8]}
32... Kg7 {[%clk 0:02:03.1]} 33. Rxg6+ {[%clk 0:00:17.9]} 33... fxg6 {[%clk
0:02:04]} 34. Qg4 {[%clk 0:00:17.3]} 34... Qxc4 {[%clk 0:02:01.9]} 35. Kg2
{[%clk 0:00:12.9]} 35... Bxc3 {[%clk 0:02:01.2]} 36. bxc3 {[%clk 0:00:11.4]}
36... Qxe4 {[%clk 0:02:01.3]} 37. Bxd6 {[%clk 0:00:10.6]} 37... Qxg4+ {[%clk
0:02:01.1]} 0-1

[Event "Early-Titled-Tuesday-Blitz-February-06-2024"]
[Site "Chess.com"]
[Date "2024.02.06"]
[Round "1"]
[White "Chernyavsky_A"]
[Black "Agibileg"]
[Result "0-1"]
[WhiteElo "2404"]
[BlackElo "2733"]
[TimeControl "180+1"]
[EndTime "8:05:43 PST"]
[Termination "Agibileg won by resignation"]

1. d4 {[%clk 0:02:59.7]} 1... Nf6 {[%clk 0:02:54.1]} 2. c4 {[%clk 0:02:58.2]}
2... e6 {[%clk 0:02:54.2]} 3. Nf3 {[%clk 0:02:55.5]} 3... c5 {[%clk 0:02:50]} 4.
g3 {[%clk 0:02:38.1]} 4... cxd4 {[%clk 0:02:49.3]} 5. Nxd4 {[%clk 0:02:39]} 5...
d5 {[%clk 0:02:49.7]} 6. Bg2 {[%clk 0:02:22]} 6... e5 {[%clk 0:02:48.9]} 7. Nf3
{[%clk 0:02:10.1]} 7... d4 {[%clk 0:02:49.2]} 8. O-O {[%clk 0:02:00.5]} 8... Nc6
{[%clk 0:02:49.4]} 9. e3 {[%clk 0:01:55.7]} 9... Be7 {[%clk 0:02:49.4]} 10. exd4
{[%clk 0:01:44.6]} 10... exd4 {[%clk 0:02:50.3]} 11. b3 {[%clk 0:01:41.7]} 11...
O-O {[%clk 0:02:38.9]} 12. Bb2 {[%clk 0:01:41]} 12... Bc5 {[%clk 0:02:33.1]} 13.
a3 {[%clk 0:01:35.2]} 13... a5 {[%clk 0:02:33]} 14. Ne1 {[%clk 0:01:24.3]} 14...
Bg4 {[%clk 0:02:30.7]} 15. Bf3 {[%clk 0:01:16.6]} 15... Bxf3 {[%clk 0:02:29.1]}
16. Qxf3 {[%clk 0:01:17.5]} 16... Ne5 {[%clk 0:02:24.8]} 17. Qf5 {[%clk
0:01:09.6]} 17... Re8 {[%clk 0:02:21.2]} 18. Nd2 {[%clk 0:01:04.6]} 18... Qb6
{[%clk 0:02:02.8]} 19. Qc2 {[%clk 0:00:48.7]} 19... Qe6 {[%clk 0:01:35.5]} 20.
Nd3 {[%clk 0:00:40]} 20... Qf5 {[%clk 0:01:35.4]} 21. Ne1 {[%clk 0:00:30.3]}
21... Qh3 {[%clk 0:01:32.7]} 22. Ne4 {[%clk 0:00:20.3]} 22... Nfg4 {[%clk
0:01:31]} 23. f4 {[%clk 0:00:16.3]} 23... d3+ {[%clk 0:01:31]} 24. Nxc5 {[%clk
0:00:16.7]} 24... dxc2 {[%clk 0:01:30]} 0-1

[Event "Early-Titled-Tuesday-Blitz-February-06-2024"]
[Site "Chess.com"]
[Date "2024.02.06"]
[Round "1"]
[White "Roman_Ovetchkin"]
[Black "GrotBchess"]
[Result "0-1"]
[WhiteElo "2653"]
[BlackElo "2366"]
[TimeControl "180+1"]
[EndTime "8:05:44 PST"]
[Termination "GrotBchess won on time"]

1. d4 {[%clk 0:03:00.9]} 1... Nf6 {[%clk 0:02:58.9]} 2. c4 {[%clk 0:02:58.5]}
2... g6 {[%clk 0:02:58]} 3. Nc3 {[%clk 0:02:58]} 3... Bg7 {[%clk 0:02:57.7]} 4.
e4 {[%clk 0:02:57.4]} 4... d6 {[%clk 0:02:57.9]} 5. Be2 {[%clk 0:02:48.6]} 5...
Nc6 {[%clk 0:02:55.8]} 6. Nf3 {[%clk 0:02:44.8]} 6... e5 {[%clk 0:02:55.4]} 7.
d5 {[%clk 0:02:44.1]} 7... Ne7 {[%clk 0:02:51.3]} 8. h3 {[%clk 0:02:38.3]} 8...
O-O {[%clk 0:02:50.8]} 9. g4 {[%clk 0:02:36.3]} 9... a5 {[%clk 0:02:47]} 10. Rg1
{[%clk 0:02:31.7]} 10... Nd7 {[%clk 0:02:46.2]} 11. h4 {[%clk 0:02:28.5]} 11...
Nc5 {[%clk 0:02:44.2]} 12. h5 {[%clk 0:02:27.2]} 12... Bd7 {[%clk 0:02:32.6]}
13. Be3 {[%clk 0:02:11]} 13... b6 {[%clk 0:02:28.2]} 14. Rg3 {[%clk 0:02:08.7]}
14... Qc8 {[%clk 0:02:27]} 15. Nd2 {[%clk 0:02:07.4]} 15... Bf6 {[%clk
0:02:20.2]} 16. Kf1 {[%clk 0:01:38.2]} 16... Bh4 {[%clk 0:01:59.4]} 17. Rh3
{[%clk 0:01:37.9]} 17... Bf6 {[%clk 0:01:59.2]} 18. Kg2 {[%clk 0:01:35.2]} 18...
Bg7 {[%clk 0:01:57.3]} 19. Rg3 {[%clk 0:01:33.9]} 19... Kh8 {[%clk 0:01:55.3]}
20. h6 {[%clk 0:01:26.2]} 20... Bf6 {[%clk 0:01:49]} 21. g5 {[%clk 0:01:25.7]}
21... Ng8 {[%clk 0:01:48.8]} 22. gxf6 {[%clk 0:01:23.9]} 22... Nxf6 {[%clk
0:01:49.7]} 23. Qh1 {[%clk 0:01:21.3]} 23... Ne8 {[%clk 0:01:48]} 24. Qh4 {[%clk
0:01:17]} 24... f5 {[%clk 0:01:46.5]} 25. f4 {[%clk 0:01:10.9]} 25... exf4
{[%clk 0:01:38.9]} 26. Bd4+ {[%clk 0:00:58.8]} 26... Kg8 {[%clk 0:01:36.7]} 27.
Rxg6+ {[%clk 0:00:57.6]} 27... hxg6 {[%clk 0:01:32.8]} 0-1

[Event "Early-Titled-Tuesday-Blitz-February-06-2024"]
[Site "Chess.com"]
[Date "2024.02.06"]
[Round "1"]
[White "Squirlolz"]
[Black "JaackCamel"]
[Result "1-0"]
[WhiteElo "2565"]
[BlackElo "2153"]
[TimeControl "180+1"]
[EndTime "8:05:46 PST"]
[Termination "Squirlolz won by resignation"]

1. e4 {[%clk 0:03:00.9]} 1... e6 {[%clk 0:02:51.5]} 2. d3 {[%clk 0:02:59.7]}
2... d5 {[%clk 0:02:49.9]} 3. Nd2 {[%clk 0:03:00]} 3... c5 {[%clk 0:02:48.7]} 4.
g3 {[%clk 0:02:56.7]} 4... Nc6 {[%clk 0:02:47.9]} 5. Bg2 {[%clk 0:02:56.3]} 5...
Nf6 {[%clk 0:02:47.5]} 6. f4 {[%clk 0:02:55.6]} 6... g6 {[%clk 0:02:41.3]} 7. e5
{[%clk 0:02:32.8]} 7... Nd7 {[%clk 0:02:38.4]} 8. h4 {[%clk 0:02:33.5]} 8... h5
{[%clk 0:02:36.5]} 9. c4 {[%clk 0:02:33.2]} 9... Nb6 {[%clk 0:02:29.4]} 10. Ngf3
{[%clk 0:02:32.5]} 10... Be7 {[%clk 0:02:25]} 11. O-O {[%clk 0:02:23]} 11... a5
{[%clk 0:02:22.8]} 12. a3 {[%clk 0:01:59.5]} 12... a4 {[%clk 0:02:21.6]} 13. Qc2
{[%clk 0:01:48.8]} 13... Bd7 {[%clk 0:02:15]} 14. Nb1 {[%clk 0:01:40.2]} 14...
Na5 {[%clk 0:02:11.9]} 15. Nfd2 {[%clk 0:01:30.5]} 15... Bc6 {[%clk 0:02:10.6]}
16. Nc3 {[%clk 0:01:27]} 16... Qd7 {[%clk 0:02:08.6]} 17. cxd5 {[%clk
0:01:13.7]} 17... exd5 {[%clk 0:02:06.6]} 18. Kh2 {[%clk 0:01:13.6]} 18... Qc7
{[%clk 0:01:52.6]} 19. d4 {[%clk 0:01:00.1]} 19... c4 {[%clk 0:01:40.8]} 20. f5
{[%clk 0:00:58.9]} 20... Nb3 {[%clk 0:01:30.2]} 21. Nxb3 {[%clk 0:00:45.4]}
21... axb3 {[%clk 0:01:28]} 22. Qf2 {[%clk 0:00:46]} 22... O-O-O {[%clk
0:01:17]} 23. f6 {[%clk 0:00:39.1]} 23... Bf8 {[%clk 0:01:14.9]} 24. Bf4 {[%clk
0:00:39.2]} 24... Bh6 {[%clk 0:01:13]} 25. a4 {[%clk 0:00:34.4]} 25... Bxf4
{[%clk 0:01:12.5]} 26. Qxf4 {[%clk 0:00:34.2]} 26... Qd7 {[%clk 0:01:00.6]} 27.
a5 {[%clk 0:00:33.7]} 27... Na8 {[%clk 0:01:00.5]} 28. Bh3 {[%clk 0:00:33.3]}
1-0

[Event "Early-Titled-Tuesday-Blitz-February-06-2024"]
[Site "Chess.com"]
[Date "2024.02.06"]
[Round "1"]
[White "GMaka"]
[Black "DenLaz"]
[Result "0-1"]
[WhiteElo "2525"]
[BlackElo "3065"]
[TimeControl "180+1"]
[EndTime "8:05:47 PST"]
[Termination "DenLaz won by checkmate"]

1. d4 {[%clk 0:03:00.9]} 1... f5 {[%clk 0:02:59.5]} 2. c4 {[%clk 0:02:59.4]}
2... Nf6 {[%clk 0:02:59.7]} 3. Nc3 {[%clk 0:03:00]} 3... d6 {[%clk 0:02:59.9]}
4. g3 {[%clk 0:02:54.1]} 4... g6 {[%clk 0:02:55.7]} 5. h4 {[%clk 0:02:51]} 5...
Bg7 {[%clk 0:02:53.6]} 6. Bg2 {[%clk 0:02:37.3]} 6... O-O {[%clk 0:02:49.9]} 7.
Nh3 {[%clk 0:02:32.1]} 7... c6 {[%clk 0:02:39.6]} 8. d5 {[%clk 0:02:27]} 8... e5
{[%clk 0:02:38.5]} 9. dxe6 {[%clk 0:02:26.7]} 9... Bxe6 {[%clk 0:02:38.1]} 10.
Qd3 {[%clk 0:01:57.2]} 10... Na6 {[%clk 0:02:34.6]} 11. Ng5 {[%clk 0:01:46.4]}
11... Nc5 {[%clk 0:02:31.6]} 12. Qd4 {[%clk 0:01:46.3]} 12... Nfe4 {[%clk
0:02:14.2]} 13. Qe3 {[%clk 0:01:16.3]} 13... Nxg5 {[%clk 0:02:02.9]} 14. hxg5
{[%clk 0:01:11.2]} 14... Bxc4 {[%clk 0:02:03.4]} 15. Qf4 {[%clk 0:01:06]} 15...
d5 {[%clk 0:01:44.8]} 16. Qh4 {[%clk 0:01:04.9]} 16... Kf7 {[%clk 0:01:44.1]}
17. Bd2 {[%clk 0:01:01.4]} 17... b5 {[%clk 0:01:24.9]} 18. Be3 {[%clk
0:00:34.4]} 18... Ne6 {[%clk 0:01:19.8]} 19. Rd1 {[%clk 0:00:28.3]} 19... Qa5
{[%clk 0:01:08.4]} 20. Bd2 {[%clk 0:00:28.4]} 20... b4 {[%clk 0:01:07.9]} 21.
Nb1 {[%clk 0:00:20.8]} 21... Qxa2 {[%clk 0:01:02.2]} 22. Bxb4 {[%clk 0:00:20.1]}
22... Qxb2 {[%clk 0:01:01.8]} 23. Bxf8 {[%clk 0:00:20.1]} 23... Qxe2# {[%clk
0:01:01.2]} 0-1

[Event "Early-Titled-Tuesday-Blitz-February-06-2024"]
[Site "Chess.com"]
[Date "2024.02.06"]
[Round "1"]
[White "jeetjain"]
[Black "MagnusCarlsen"]
[Result "0-1"]
[WhiteElo "2533"]
[BlackElo "3339"]
[TimeControl "180+1"]
[EndTime "8:05:49 PST"]
[Termination "MagnusCarlsen won by resignation"]

1. e4 {[%clk 0:02:59.5]} 1... Nf6 {[%clk 0:02:58.9]} 2. Nc3 {[%clk 0:02:56.9]}
2... c5 {[%clk 0:02:56.7]} 3. Nf3 {[%clk 0:02:53.4]} 3... a6 {[%clk 0:02:53]} 4.
e5 {[%clk 0:02:48.8]} 4... Ng4 {[%clk 0:02:52.2]} 5. h3 {[%clk 0:02:46.4]} 5...
Nh6 {[%clk 0:02:51.9]} 6. d4 {[%clk 0:02:43.1]} 6... cxd4 {[%clk 0:02:52.8]} 7.
Nxd4 {[%clk 0:02:43.3]} 7... e6 {[%clk 0:02:53]} 8. Bxh6 {[%clk 0:02:41.3]} 8...
gxh6 {[%clk 0:02:53.9]} 9. Qd2 {[%clk 0:02:34.1]} 9... Bg7 {[%clk 0:02:53.4]}
10. f4 {[%clk 0:02:34]} 10... d6 {[%clk 0:02:49.5]} 11. exd6 {[%clk 0:02:31.3]}
11... Qh4+ {[%clk 0:02:46.7]} 12. Kd1 {[%clk 0:02:25.2]} 12... O-O {[%clk
0:02:46.5]} 13. Nf3 {[%clk 0:02:21.3]} 13... Qf6 {[%clk 0:02:43.5]} 14. Bc4
{[%clk 0:02:14]} 14... b5 {[%clk 0:02:35.6]} 15. Bb3 {[%clk 0:02:10.9]} 15...
Bb7 {[%clk 0:02:35.1]} 16. Ke2 {[%clk 0:02:08.4]} 16... Nd7 {[%clk 0:02:33.2]}
17. Rhe1 {[%clk 0:01:58.1]} 17... Rac8 {[%clk 0:02:19.5]} 18. Kf2 {[%clk
0:01:51]} 18... Nc5 {[%clk 0:02:17.8]} 19. Ne5 {[%clk 0:01:40.1]} 19... Rfd8
{[%clk 0:02:17.6]} 20. Rad1 {[%clk 0:01:38.2]} 20... b4 {[%clk 0:02:16.5]} 21.
Na4 {[%clk 0:01:32.2]} 21... Ne4+ {[%clk 0:02:14.7]} 22. Rxe4 {[%clk 0:01:32.3]}
22... Bxe4 {[%clk 0:02:15.6]} 23. Nb6 {[%clk 0:01:28.7]} 23... Rxd6 {[%clk
0:02:15.6]} 24. Qxd6 {[%clk 0:00:25]} 24... Qxf4+ {[%clk 0:02:15.4]} 25. Ke2
{[%clk 0:00:17.4]} 25... Bxe5 {[%clk 0:02:14.6]} 26. Qd7 {[%clk 0:00:17]} 26...
Rf8 {[%clk 0:02:11.8]} 27. Rf1 {[%clk 0:00:16.6]} 27... Qg5 {[%clk 0:02:08]} 28.
Rf2 {[%clk 0:00:16]} 28... Bg6 {[%clk 0:01:59.3]} 29. Qd2 {[%clk 0:00:15.3]}
29... Qxd2+ {[%clk 0:01:55.3]} 30. Kxd2 {[%clk 0:00:15.3]} 30... Bd4 {[%clk
0:01:55.1]} 31. Rf4 {[%clk 0:00:07.1]} 31... Bxb6 {[%clk 0:01:52.7]} 32. Rxb4
{[%clk 0:00:07.4]} 32... Ba5 {[%clk 0:01:53.4]} 0-1

[Event "Early-Titled-Tuesday-Blitz-February-06-2024"]
[Site "Chess.com"]
[Date "2024.02.06"]
[Round "1"]
[White "B_nn_t"]
[Black "PepeCuenca"]
[Result "0-1"]
[WhiteElo "2388"]
[BlackElo "2712"]
[TimeControl "180+1"]
[EndTime "8:05:51 PST"]
[Termination "PepeCuenca won by resignation"]

1. Nf3 {[%clk 0:02:59.7]} 1... Nf6 {[%clk 0:02:56.3]} 2. c4 {[%clk 0:02:58.1]}
2... g6 {[%clk 0:02:55.2]} 3. e3 {[%clk 0:02:55.6]} 3... Bg7 {[%clk 0:02:55.2]}
4. Nc3 {[%clk 0:02:53.5]} 4... c5 {[%clk 0:02:53.7]} 5. b3 {[%clk 0:02:49.9]}
5... O-O {[%clk 0:02:46.7]} 6. Bb2 {[%clk 0:02:48.4]} 6... Nc6 {[%clk
0:02:47.3]} 7. Be2 {[%clk 0:02:47.8]} 7... b6 {[%clk 0:02:37.7]} 8. O-O {[%clk
0:02:46.9]} 8... Bb7 {[%clk 0:02:37.8]} 9. d4 {[%clk 0:02:45.1]} 9... cxd4
{[%clk 0:02:38]} 10. Nxd4 {[%clk 0:02:42.4]} 10... Nxd4 {[%clk 0:02:36.6]} 11.
exd4 {[%clk 0:02:41.8]} 11... d5 {[%clk 0:02:35.7]} 12. Bf3 {[%clk 0:02:40.7]}
12... Rc8 {[%clk 0:02:18.6]} 13. Qe2 {[%clk 0:02:30.8]} 13... Re8 {[%clk
0:02:01.5]} 14. Rac1 {[%clk 0:02:21.2]} 14... Qd7 {[%clk 0:01:55.6]} 15. Rfd1
{[%clk 0:02:10.5]} 15... e6 {[%clk 0:01:36.9]} 16. h3 {[%clk 0:02:01.5]} 16...
Bh6 {[%clk 0:01:31.2]} 17. Rc2 {[%clk 0:01:51.3]} 17... Ba6 {[%clk 0:01:31.2]}
18. Qe5 {[%clk 0:01:28.4]} 18... Bg7 {[%clk 0:01:23.8]} 19. Be2 {[%clk 0:01:01]}
19... dxc4 {[%clk 0:01:12.7]} 20. bxc4 {[%clk 0:01:00.4]} 20... Bxc4 {[%clk
0:01:08.5]} 21. Bxc4 {[%clk 0:00:59.8]} 21... Rxc4 {[%clk 0:01:09.4]} 22. Qe2
{[%clk 0:00:37.9]} 22... Rec8 {[%clk 0:01:05.1]} 23. Qf3 {[%clk 0:00:28.5]}
23... Nd5 {[%clk 0:01:00.8]} 24. Nxd5 {[%clk 0:00:28]} 24... Rxc2 {[%clk
0:00:55.7]} 0-1

[Event "Early-Titled-Tuesday-Blitz-February-06-2024"]
[Site "Chess.com"]
[Date "2024.02.06"]
[Round "1"]
[White "SahibSinghKnight"]
[Black "Willi_Skibbe"]
[Result "1-0"]
[WhiteElo "2651"]
[BlackElo "2329"]
[TimeControl "180+1"]
[EndTime "8:05:51 PST"]
[Termination "SahibSinghKnight won by resignation"]

1. e4 {[%clk 0:03:00.9]} 1... e6 {[%clk 0:02:59.6]} 2. d4 {[%clk 0:02:59.3]}
2... d5 {[%clk 0:02:55]} 3. Nd2 {[%clk 0:02:59.5]} 3... c5 {[%clk 0:02:44]} 4.
exd5 {[%clk 0:02:58.7]} 4... Qxd5 {[%clk 0:02:42.6]} 5. Ngf3 {[%clk 0:02:58.5]}
5... cxd4 {[%clk 0:02:42.7]} 6. Bc4 {[%clk 0:02:58.5]} 6... Qd6 {[%clk
0:02:43.1]} 7. O-O {[%clk 0:02:58.7]} 7... Nf6 {[%clk 0:02:43.7]} 8. Nb3 {[%clk
0:02:57]} 8... Nc6 {[%clk 0:02:44.3]} 9. Nbxd4 {[%clk 0:02:56.4]} 9... Nxd4
{[%clk 0:02:44.1]} 10. Nxd4 {[%clk 0:02:57.3]} 10... a6 {[%clk 0:02:43.6]} 11.
Re1 {[%clk 0:02:57.8]} 11... Be7 {[%clk 0:02:30.8]} 12. a4 {[%clk 0:02:39.9]}
12... Qc7 {[%clk 0:02:27.2]} 13. b3 {[%clk 0:02:35.8]} 13... O-O {[%clk
0:02:13.7]} 14. Qf3 {[%clk 0:02:31.7]} 14... Rd8 {[%clk 0:01:02.1]} 15. Bf4
{[%clk 0:02:18.4]} 15... Bd6 {[%clk 0:00:59.2]} 16. Bxd6 {[%clk 0:02:11]} 16...
Rxd6 {[%clk 0:00:55.5]} 17. Rad1 {[%clk 0:02:09.2]} 17... Bd7 {[%clk 0:00:51]}
18. Qg3 {[%clk 0:02:07.6]} 18... Rc6 {[%clk 0:00:20.6]} 19. Nxc6 {[%clk
0:02:04.3]} 19... Qxc6 {[%clk 0:00:19.3]} 20. Qd6 {[%clk 0:02:01.1]} 20... Qxd6
{[%clk 0:00:18.5]} 21. Rxd6 {[%clk 0:02:02]} 21... Bc6 {[%clk 0:00:19.4]} 22.
Red1 {[%clk 0:01:57.1]} 22... g6 {[%clk 0:00:10.1]} 23. Rd8+ {[%clk 0:01:54.1]}
23... Rxd8 {[%clk 0:00:10.7]} 24. Rxd8+ {[%clk 0:01:54.7]} 24... Kg7 {[%clk
0:00:11.6]} 25. Rc8 {[%clk 0:01:53.4]} 25... Ne4 {[%clk 0:00:09.2]} 26. Bxa6
{[%clk 0:01:43.8]} 26... Nd6 {[%clk 0:00:08]} 27. Rd8 {[%clk 0:01:43.8]} 27...
Nf5 {[%clk 0:00:06.6]} 28. Bb5 {[%clk 0:01:37.3]} 28... Be4 {[%clk 0:00:05.9]}
29. Bd3 {[%clk 0:01:34.9]} 29... Bc6 {[%clk 0:00:04.5]} 30. Bxf5 {[%clk
0:01:35.2]} 30... gxf5 {[%clk 0:00:05.4]} 31. a5 {[%clk 0:01:35.1]} 31... Kf6
{[%clk 0:00:05.4]} 32. c4 {[%clk 0:01:34.1]} 1-0

[Event "Early-Titled-Tuesday-Blitz-February-06-2024"]
[Site "Chess.com"]
[Date "2024.02.06"]
[Round "1"]
[White "Vladimir_Zakhartsov"]
[Black "Atousa"]
[Result "1-0"]
[WhiteElo "2836"]
[BlackElo "2458"]
[TimeControl "180+1"]
[EndTime "8:05:55 PST"]
[Termination "Vladimir_Zakhartsov won by resignation"]

1. d4 {[%clk 0:03:00.9]} 1... Nf6 {[%clk 0:02:50.4]} 2. c4 {[%clk 0:02:59.8]}
2... e6 {[%clk 0:02:46.9]} 3. Nf3 {[%clk 0:02:59.6]} 3... d5 {[%clk 0:02:40.7]}
4. g3 {[%clk 0:02:59]} 4... dxc4 {[%clk 0:02:34.1]} 5. Bg2 {[%clk 0:02:56]} 5...
Nc6 {[%clk 0:02:29.3]} 6. Qa4 {[%clk 0:02:52.8]} 6... Bb4+ {[%clk 0:02:23.4]} 7.
Bd2 {[%clk 0:02:52.8]} 7... Nd5 {[%clk 0:02:20.4]} 8. Bxb4 {[%clk 0:02:52.4]}
8... Nxb4 {[%clk 0:02:18.5]} 9. O-O {[%clk 0:02:52.1]} 9... O-O {[%clk
0:02:17.7]} 10. a3 {[%clk 0:02:50.4]} 10... b5 {[%clk 0:02:15.6]} 11. Qxb5
{[%clk 0:02:49]} 11... Rb8 {[%clk 0:01:28.9]} 12. Qa4 {[%clk 0:02:22.8]} 12...
Bd7 {[%clk 0:01:18]} 13. axb4 {[%clk 0:02:20.5]} 13... Nxd4 {[%clk 0:01:18.3]}
14. Qd1 {[%clk 0:02:18.1]} 14... Nb3 {[%clk 0:01:16.7]} 15. Rxa7 {[%clk
0:02:15.8]} 15... Rxb4 {[%clk 0:01:15.9]} 16. Ne5 {[%clk 0:02:12.1]} 16... Bb5
{[%clk 0:00:54.5]} 17. Qxd8 {[%clk 0:02:07.3]} 17... Rxd8 {[%clk 0:00:55.4]} 18.
Rxc7 {[%clk 0:02:03.1]} 18... f6 {[%clk 0:00:54.6]} 19. Nf3 {[%clk 0:01:48.4]}
19... Na5 {[%clk 0:00:48.1]} 20. Nc3 {[%clk 0:01:43.2]} 20... Be8 {[%clk
0:00:43.7]} 21. Ra1 {[%clk 0:01:29.8]} 21... Nc6 {[%clk 0:00:37.5]} 22. Rb1
{[%clk 0:01:13.6]} 22... Rdb8 {[%clk 0:00:36.6]} 23. Nd2 {[%clk 0:01:05.7]}
23... Rxb2 {[%clk 0:00:32.5]} 24. Rxb2 {[%clk 0:01:04.7]} 24... Rxb2 {[%clk
0:00:33.4]} 25. Bxc6 {[%clk 0:01:03.7]} 25... Bxc6 {[%clk 0:00:30.8]} 26. Nxc4
{[%clk 0:00:54.1]} 26... Rc2 {[%clk 0:00:29.5]} 27. Rxc6 {[%clk 0:00:54.1]}
27... Rxc3 {[%clk 0:00:29.6]} 28. Rc8+ {[%clk 0:00:54.3]} 1-0